fUSD/lending_fUSD_20241223
["ID","MTS","AMOUNT","RATE_DAILY","PERIOD"]
[346449777,1734979839502,-1270.59,0.00017523,2]
[346449778,1734979839512,-2370.53,0.00017523,2]
[346449779,1734979839523,-5863.6,0.00017523,2]
[346449780,1734979839533,-2236.24,0.00017523,2]
[346449781,1734979839542,-6361.61,0.00017523,2]
[346449782,1734979839553,-6003.85,0.00017523,2]
[346449783,1734979839562,-1186.95,0.00017523,2]
[346449784,1734979839572,-3326.94,0.00017523,2]
[346449785,1734979839582,-3078.56,0.00017523,2]
[346449786,1734979839592,-500.0,0.00017523,2]
[346449787,1734979839602,-849.49,0.00017523,2]
[346449788,1734979839612,-500.0,0.00017523,2]
[346449789,1734979839622,-670.28,0.00017523,2]
[346449790,1734979839632,-500.0,0.00017523,2]
[346449791,1734979839642,-5175.06,0.00017523,2]
[346449792,1734979839652,-500.0,0.00017523,2]
[346449793,1734979839663,-2028.67,0.00017523,2]
[346449794,1734979839674,-1135.32,0.00017523,2]
[346449795,1734979839685,-5610.48,0.00017523,2]
[346449796,1734979839696,-1667.36,0.00017523,2]
[346449797,1734979839706,-749.69,0.00017523,2]
[346449798,1734979839718,-500.0,0.00017524,2]
[346449799,1734979839738,-500.0,0.00017524,2]
[346449800,1734979839748,-500.0,0.00017524,2]
[346449801,1734979839758,-500.0,0.00017524,2]
[346449802,1734979839767,-500.0,0.00017524,2]
[346449803,1734979839779,-211.69778969,0.00017524,2]
[346449804,1734979839789,-500.0,0.00017524,2]
[346449805,1734979839799,-500.0,0.00017524,2]
[346449806,1734979839813,-500.0,0.00017524,2]
[346449807,1734979839823,-500.0,0.00017524,2]
[346449808,1734979839833,-500.0,0.00017524,2]
[346449809,1734979839843,-1808.72,0.00017524,2]
[346449810,1734979839853,-500.0,0.00017524,2]
[346449811,1734979839863,-506.07868845,0.00017524,2]
[346449812,1734979839873,-500.0,0.00017524,2]
[346449813,1734979839883,-500.0,0.00017524,2]
[346449814,1734979839894,-500.0,0.00017524,2]
[346449815,1734979839904,-500.0,0.00017524,2]
[346449816,1734979839915,-922.03,0.00017524,2]
[346449817,1734979839926,-500.0,0.00017524,2]
[346449818,1734979839936,-500.0,0.00017524,2]
[346449819,1734979839946,-666.2,0.00017524,2]
[346449820,1734979839956,-918.09,0.00017524,2]
[346449821,1734979839966,-699.65,0.00017524,2]
[346449822,1734979839976,-989.73,0.00017524,2]
[346449823,1734979839986,-719.37,0.00017524,2]
[346449824,1734979839997,-1017.66,0.00017524,2]
[346449825,1734979840006,-2889.86,0.00017524,2]
[346449826,1734979840016,-1170.6,0.00017524,2]
[346449827,1734979840026,-1438.34,0.00017524,2]
[346449837,1734979840702,-812.67,0.00017524,2]
[346449838,1734979840729,-1580.02,0.00017524,2]
[346449839,1734979840758,-520.63,0.00017524,2]
[346449840,1734979840767,-2468.08,0.00017524,2]
[346449841,1734979840777,-791.87,0.00017524,2]
[346449842,1734979840787,-1409.68,0.00017524,2]
[346449843,1734979840796,-3906.05,0.00017524,2]
[346449844,1734979840806,-500.0,0.00017524,2]
[346449845,1734979840816,-19921.1,0.00017524,2]
[346449846,1734979840826,-1075.07,0.00017524,2]
[346449847,1734979840836,-1611.32,0.00017524,2]
[346449848,1734979840846,-500.0,0.00017524,2]
[346449849,1734979840856,-2935.22,0.00017524,2]
[346449850,1734979840866,-1565.69,0.00017524,2]
[346449851,1734979840875,-2622.28,0.00017524,2]
[346449852,1734979840885,-1081.32,0.00017524,2]
[346449853,1734979840895,-1955.83,0.00017524,2]
[346449854,1734979840905,-1441.88,0.00017524,2]
[346449855,1734979840915,-1750.93,0.00017524,2]
[346449856,1734979840925,-634.75,0.00017524,2]
[346449857,1734979840935,-3592.0,0.00017524,2]
[346449858,1734979840945,-500.0,0.00017524,2]
[346449859,1734979840955,-1001.15,0.00017524,2]
[346449860,1734979840964,-500.0,0.00017524,2]
[346449861,1734979840974,-1569.58,0.00017524,2]
[346449862,1734979840984,-1049.39,0.00017524,2]
[346449863,1734979840993,-1218.79,0.00017524,2]
[346449864,1734979841003,-500.0,0.00017524,2]
[346449865,1734979841013,-2571.7,0.00017524,2]
[346449866,1734979841023,-2298.48,0.00017524,2]
[346449867,1734979841032,-509.06,0.00017524,2]
[346449868,1734979841042,-2587.77,0.00017524,2]
[346449869,1734979841051,-2570.33,0.00017524,2]
[346449870,1734979841061,-3031.49,0.00017524,2]
[346449871,1734979841071,-1231.89,0.00017524,2]
[346449872,1734979841080,-1868.4,0.00017524,2]
[346449873,1734979841090,-1640.96,0.00017524,2]
[346449874,1734979841099,-500.0,0.00017524,2]
[346449875,1734979841111,-4544.17,0.00017524,2]
[346449876,1734979841121,-1859.53,0.00017524,2]
[346449877,1734979841131,-6633.3,0.00017524,2]
[346449878,1734979841140,-3103.99,0.00017524,2]
[346449879,1734979841151,-512.62,0.00017524,2]
[346449880,1734979841160,-1124.03,0.00017524,2]
[346449881,1734979841169,-3102.85,0.00017524,2]
[346449882,1734979841179,-2882.42,0.00017524,2]
[346449883,1734979841189,-500.0,0.00017524,2]
[346449884,1734979841198,-5478.14,0.00017524,2]
[346449885,1734979841208,-1467.6,0.00017524,2]
[346449886,1734979841218,-1076.83,0.00017524,2]
[346449887,1734979841230,-5742.8,0.00017524,2]
[346449888,1734979841242,-584.11,0.00017524,2]
[346449889,1734979841257,-752.84,0.00017524,2]
[346449890,1734979841266,-27072.74,0.00017524,2]
[346449891,1734979841276,-1711.56,0.00017524,2]
[346449892,1734979841286,-3187.25,0.00017524,2]
[346449894,1734979841295,-500.0,0.00017524,2]
[346449895,1734979841304,-3745.84,0.00017524,2]
[346449896,1734979841314,-1549.09,0.00017524,2]
[346449897,1734979841323,-643.66,0.00017525,2]
[346449898,1734979841332,-500.0,0.00017525,2]
[346449899,1734979841342,-500.0,0.00017525,2]
[346449900,1734979841351,-511.27964236,0.00017525,2]
[346449901,1734979841361,-500.0,0.00017525,2]
[346449902,1734979841371,-157.86,0.00017525,2]
[346449903,1734979841380,-456.37,0.00017525,2]
[346449904,1734979841390,-500.0,0.00017525,2]
[346449905,1734979841399,-500.0,0.00017525,2]
[346449906,1734979841408,-500.0,0.00017525,2]
[346449907,1734979841418,-548.99109844,0.00017525,2]
[346449908,1734979841427,-233.86491047,0.00017525,2]
[346449909,1734979841437,-500.0,0.00017525,2]
[346449910,1734979841447,-1190.86,0.00017525,2]
[346449911,1734979841456,-500.0,0.00017525,2]
[346449912,1734979841465,-505.15156816,0.00017525,2]
[346449913,1734979841475,-500.0,0.00017525,2]
[346449915,1734979841489,-1605.17,0.00017525,2]
[346449917,1734979841499,-607.88,0.00017525,2]
[346449918,1734979841508,-500.0,0.00017525,2]
[346449919,1734979841518,-500.0,0.00017525,2]
[346449920,1734979841527,-500.0,0.00017525,2]
[346449921,1734979841536,-208.43496289,0.00017525,2]
[346449922,1734979841546,-500.0,0.00017525,2]
[346449923,1734979841555,-500.0,0.00017525,2]
[346449924,1734979841564,-1122.28,0.00017525,2]
[346449925,1734979841574,-746.16,0.00017525,2]
[346449926,1734979841583,-500.0,0.00017525,2]
[346449927,1734979841592,-500.0,0.00017525,2]
[346449928,1734979841602,-500.0,0.00017525,2]
[346449929,1734979841611,-500.0,0.00017525,2]
[346449930,1734979841621,-500.0,0.00017525,2]
[346449931,1734979841630,-500.0,0.00017525,2]
[346449932,1734979841639,-1060.16,0.00017525,2]
[346449933,1734979841649,-500.0,0.00017525,2]
[346449934,1734979841658,-500.0,0.00017525,2]
[346449935,1734979841667,-506.27969744,0.00017525,2]
[346449936,1734979841676,-501.55,0.00017525,2]
[346449937,1734979841685,-270.08133299,0.00017525,2]
[346449938,1734979841695,-980.06,0.00017525,2]
[346449939,1734979841704,-885.03,0.00017525,2]
[346449940,1734979841713,-1076.04,0.00017525,2]
[346449941,1734979841723,-500.0,0.00017525,2]
[346449942,1734979841738,-594.31,0.00017525,2]
[346449943,1734979841747,-500.0,0.00017525,2]
[346449944,1734979841757,-1441.46,0.00017525,2]
[346449945,1734979841766,-770.36,0.00017525,2]
[346449946,1734979841775,-673.97,0.00017525,2]
[346449947,1734979841784,-1165.51,0.00017525,2]
[346449948,1734979841793,-500.0,0.00017525,2]
[346449949,1734979841803,-515.84,0.00017525,2]
[346449950,1734979841812,-525.08,0.00017525,2]
[346449951,1734979841822,-1383.86,0.00017525,2]
[346449952,1734979841832,-500.0,0.00017525,2]
[346449953,1734979841842,-500.0,0.00017525,2]
[346449954,1734979841851,-500.0,0.00017525,2]
[346449955,1734979841861,-500.0,0.00017525,2]
[346449956,1734979841870,-500.0,0.00017525,2]
[346449957,1734979841880,-500.0,0.00017525,2]
[346449958,1734979841889,-504.39011301,0.00017525,2]
[346449959,1734979841898,-500.0,0.00017525,2]
[346449960,1734979841907,-500.0,0.00017525,2]
[346449961,1734979841916,-500.0,0.00017525,2]
[346449962,1734979841925,-500.0,0.00017525,2]
[346449963,1734979841935,-500.0,0.00017525,2]
[346449964,1734979841944,-500.0,0.00017525,2]
[346449965,1734979841953,-500.0,0.00017525,2]
[346449966,1734979841962,-500.0,0.00017525,2]
[346449967,1734979841972,-990.35,0.00017525,2]
[346449968,1734979841983,-514.0,0.00017525,2]
[346449969,1734979841992,-611.78,0.00017525,2]
[346449970,1734979842002,-500.0,0.00017525,2]
[346449971,1734979842011,-500.0,0.00017525,2]
[346449972,1734979842021,-500.0,0.00017525,2]
[346449973,1734979842031,-500.0,0.00017525,2]
[346449974,1734979842040,-559.16,0.00017525,2]
[346449975,1734979842050,-500.0,0.00017525,2]
[346449976,1734979842059,-500.0,0.00017525,2]
[346449977,1734979842069,-500.0,0.00017525,2]
[346449978,1734979842078,-500.0,0.00017525,2]
[346449979,1734979842088,-500.0,0.00017525,2]
[346449980,1734979842097,-500.0,0.00017525,2]
[346449981,1734979842106,-500.0,0.00017525,2]
[346449982,1734979842116,-529.41,0.00017525,2]
[346449983,1734979842126,-500.0,0.00017525,2]
[346449984,1734979842136,-1410.5,0.00017525,2]
[346449985,1734979842145,-698.35,0.00017525,2]
[346449986,1734979842158,-500.0,0.00017525,2]
[346449987,1734979842167,-500.0,0.00017525,2]
[346449988,1734979842176,-1043.85,0.00017525,2]
[346449989,1734979842186,-500.0,0.00017525,2]
[346449990,1734979842195,-500.0,0.00017525,2]
[346449991,1734979842204,-973.13,0.00017525,2]
[346449992,1734979842213,-886.27,0.00017525,2]
[346449993,1734979842222,-500.0,0.00017525,2]
[346449994,1734979842234,-500.0,0.00017525,2]
[346449995,1734979842244,-500.0,0.00017525,2]
[346449996,1734979842253,-508.99,0.00017526,2]
[346449997,1734979842262,-550.48,0.00017526,2]
[346449998,1734979842271,-500.0,0.00017526,2]
[346449999,1734979842281,-1002.51,0.00017526,2]
[346450000,1734979842290,-500.0,0.00017526,2]
[346450001,1734979842299,-930.07,0.00017526,2]
[346450002,1734979842308,-500.0,0.00017526,2]
[346450003,1734979842319,-500.0,0.00017526,2]
[346450004,1734979842328,-500.0,0.00017526,2]
[346450005,1734979842338,-1299.4,0.00017526,2]
[346450006,1734979842346,-500.0,0.00017526,2]
[346450007,1734979842355,-500.0,0.00017526,2]
[346450008,1734979842365,-500.0,0.00017526,2]
[346450009,1734979842374,-500.0,0.00017526,2]
[346450010,1734979842383,-556.36811793,0.00017526,2]
[346450011,1734979842393,-500.0,0.00017526,2]
[346450012,1734979842403,-657.82,0.00017526,2]
[346450013,1734979842414,-656.85,0.00017526,2]
[346450014,1734979842423,-500.0,0.00017526,2]
[346450015,1734979842433,-500.0,0.00017526,2]
[346450016,1734979842443,-1034.59,0.00017526,2]
[346450017,1734979842453,-500.0,0.00017526,2]
[346450018,1734979842462,-1707.26,0.00017526,2]
[346450019,1734979842471,-500.0,0.00017526,2]
[346450020,1734979842484,-500.0,0.00017526,2]
[346450021,1734979842493,-500.0,0.00017526,2]
[346450022,1734979842503,-500.0,0.00017526,2]
[346450023,1734979842512,-500.0,0.00017526,2]
[346450024,1734979842522,-1312.32,0.00017526,2]
[346450025,1734979842531,-500.0,0.00017526,2]
[346450026,1734979842541,-1337.01,0.00017526,2]
[346450027,1734979842550,-1326.17,0.00017526,2]
[346450028,1734979842559,-500.0,0.00017526,2]
[346450029,1734979842568,-1126.36,0.00017526,2]
[346450030,1734979842577,-500.0,0.00017526,2]
[346450031,1734979842586,-500.0,0.00017526,2]
[346450032,1734979842595,-500.0,0.00017526,2]
[346450033,1734979842604,-500.0,0.00017526,2]
[346450034,1734979842613,-1097.76,0.00017526,2]
[346450035,1734979842623,-913.72,0.00017526,2]
[346450036,1734979842632,-991.63,0.00017526,2]
[346450037,1734979842642,-1194.41,0.00017526,2]
[346450038,1734979842651,-500.0,0.00017526,2]
[346450039,1734979842660,-500.0,0.00017526,2]
[346450040,1734979842670,-1849.53,0.00017526,2]
[346450041,1734979842679,-399.26794895,0.00017526,2]
[346450042,1734979842689,-1116.49,0.00017526,2]
[346450043,1734979842698,-1269.46,0.00017526,2]
[346450044,1734979842708,-565.77,0.00017526,2]
[346450045,1734979842717,-1061.35,0.00017526,2]
[346450046,1734979842726,-1331.93,0.00017526,2]
[346450047,1734979842738,-941.61,0.00017526,2]
[346450048,1734979842747,-1688.43,0.00017526,2]
[346450049,1734979842757,-1384.34,0.00017526,2]
[346450050,1734979842766,-500.0,0.00017526,2]
[346450051,1734979842775,-321.59098192,0.00017526,2]
[346450052,1734979842785,-2415.23,0.00017526,2]
[346450053,1734979842794,-500.0,0.00017526,2]
[346450054,1734979842803,-847.82,0.00017526,2]
[346450055,1734979842813,-500.0,0.00017526,2]
[346450056,1734979842822,-525.33,0.00017526,2]
[346450057,1734979842831,-500.0,0.00017526,2]
[346450058,1734979842841,-2584.43,0.00017526,2]
[346450059,1734979842851,-500.0,0.00017526,2]
[346450060,1734979842860,-954.37,0.00017526,2]
[346450061,1734979842869,-779.23,0.00017526,2]
[346450062,1734979842878,-500.0,0.00017526,2]
[346450063,1734979842887,-500.0,0.00017526,2]
[346450064,1734979842897,-1500.51,0.00017526,2]
[346450065,1734979842906,-601.33,0.00017526,2]
[346450066,1734979842915,-2726.31,0.00017526,2]
[346450067,1734979842925,-1150.67,0.00017526,2]
[346450068,1734979842934,-500.0,0.00017526,2]
[346450071,1734979842943,-1383.3,0.00017526,2]
[346450073,1734979842952,-500.0,0.00017526,2]
[346450074,1734979842962,-977.48,0.00017526,2]
[346450075,1734979842971,-805.42,0.00017526,2]
[346450076,1734979842980,-500.0,0.00017526,2]
[346450077,1734979842989,-1285.22,0.00017526,2]
[346450078,1734979842999,-1227.66,0.00017526,2]
[346450079,1734979843008,-500.0,0.00017526,2]
[346450080,1734979843017,-500.0,0.00017526,2]
[346450081,1734979843082,-1021.62,0.00017526,2]
[346450082,1734979843092,-2319.09,0.00017526,2]
[346450083,1734979843102,-500.0,0.00017527,2]
[346450084,1734979843111,-500.0,0.00017527,2]
[346450085,1734979843120,-500.0,0.00017527,2]
[346450086,1734979843134,-2315.58512871,0.00017538,2]
[346450087,1734979843144,-302.43229845,0.00017538,2]
[346450088,1734979843153,-150.0,0.00017567,2]
[346450089,1734979843165,-150.0,0.00017644,2]
[346450090,1734979843175,-2315.58512871,0.00017667,2]
[346450091,1734979843184,-302.43229845,0.00017668,2]
[346450092,1734979843193,-150.0,0.00017675,2]
[346450093,1734979843203,-21770.6786,0.00017702,2]
[346450094,1734979843212,-150.0,0.00017721,2]
[346450095,1734979843222,-150.0,0.00017721,2]
[346450096,1734979843233,-150.99,0.00017728,2]
[346450097,1734979843244,-150.99,0.00017728,2]
[346450098,1734979843254,-9999.99,0.00017728,2]
[346450099,1734979843263,-462.8,0.00017728,2]
[346450100,1734979843272,-3264.05,0.00017728,2]
[346450101,1734979843283,-999.99,0.00017728,2]
[346450102,1734979843292,-2507.95,0.00017796,2]
[346450103,1734979843302,-1816.42,0.00017796,2]
[346450104,1734979843311,-1517.1,0.00017796,2]
[346450105,1734979843320,-3079.77,0.00017796,2]
[346450106,1734979843329,-500.0,0.00017796,2]
[346450107,1734979843338,-4907.6,0.00017796,2]
[346450108,1734979843348,-2345.72,0.00017796,2]
[346450109,1734979843357,-2757.74,0.00017796,2]
[346450110,1734979843367,-4857.11,0.00017796,2]
[346450111,1734979843376,-3135.85,0.00017796,2]
[346450112,1734979843385,-2385.18,0.00017796,2]
[346450113,1734979843395,-16534.2,0.00017796,2]
[346450114,1734979843404,-2067.54,0.00017796,2]
[346450115,1734979843413,-2315.58512871,0.00017797,2]
[346450116,1734979843422,-275.95672982,0.00017797,2]
[346450117,1734979843431,-500.0,0.00017797,2]
[346450118,1734979843440,-500.0,0.00017797,2]
[346450119,1734979843450,-500.0,0.00017797,2]
[346450123,1734979843459,-1382.62,0.00017797,2]
[346450127,1734979843468,-500.0,0.00017797,2]
[346450131,1734979843477,-621.38,0.00017797,2]
[346450134,1734979843489,-500.0,0.00017797,2]
[346450138,1734979843498,-500.0,0.00017797,2]
[346450142,1734979843507,-500.0,0.00017797,2]
[346450145,1734979843517,-358.18429424,0.00017797,2]
[346450148,1734979843526,-1058.85,0.00017797,2]
[346450151,1734979843535,-664.24,0.00017797,2]
[346450154,1734979843545,-938.84,0.00017797,2]
[346450156,1734979843554,-3051.96,0.00017797,2]
[346450158,1734979843563,-13883.08,0.00017797,2]
[346450160,1734979843571,-1423.1,0.00017797,2]
[346450163,1734979843581,-1996.09,0.00017797,2]
[346450165,1734979843590,-564.14,0.00017797,2]
[346450167,1734979843599,-2073.16,0.00017797,2]
[346450168,1734979843608,-500.0,0.00017797,2]
[346450170,1734979843617,-2686.72,0.00017797,2]
[346450173,1734979843626,-500.0,0.00017797,2]
[346450174,1734979843635,-500.0,0.00017797,2]
[346450175,1734979843644,-1339.59,0.00017797,2]
[346450176,1734979843653,-1291.94,0.00017797,2]
[346450177,1734979843662,-500.0,0.00017797,2]
[346450178,1734979843671,-4276.01,0.00017797,2]
[346450179,1734979843680,-500.0,0.00017797,2]
[346450180,1734979843690,-1676.7,0.00017797,2]
[346450181,1734979843699,-500.0,0.00017797,2]
[346450182,1734979843708,-2089.19,0.00017797,2]
[346450183,1734979843717,-1399.15,0.00017797,2]
[346450184,1734979843726,-1617.15,0.00017797,2]
[346450185,1734979843738,-2940.1,0.00017797,2]
[346450186,1734979843747,-500.0,0.00017797,2]
[346450187,1734979843757,-2813.81,0.00017797,2]
[346450188,1734979843766,-777.68,0.00017797,2]
[346450189,1734979843776,-3247.15,0.00017797,2]
[346450190,1734979843785,-1000.42,0.00017797,2]
[346450191,1734979843795,-2384.44,0.00017797,2]
[346450192,1734979843805,-1948.37,0.00017797,2]
[346450193,1734979843814,-1086.16,0.00017797,2]
[346450194,1734979843823,-3176.16,0.00017797,2]
[346450195,1734979843832,-4837.04,0.00017797,2]
[346450196,1734979843842,-537.13,0.00017797,2]
[346450197,1734979843852,-5610.09,0.00017797,2]
[346450198,1734979843861,-8446.49,0.00017797,2]
[346450199,1734979843871,-943.49,0.00017797,2]
[346450200,1734979843880,-1249.67,0.00017797,2]
[346450201,1734979843889,-3008.71,0.00017797,2]
[346450202,1734979843898,-1773.91,0.00017797,2]
[346450203,1734979843907,-1318.68,0.00017797,2]
[346450204,1734979843917,-11592.63,0.00017797,2]
[346450205,1734979843926,-9616.25,0.00017797,2]
[346450206,1734979843936,-984.87,0.00017797,2]
[346450207,1734979843946,-2439.07,0.00017797,2]
[346450208,1734979843955,-8461.3,0.00017797,2]
[346450209,1734979843965,-983.52,0.00017797,2]
[346450210,1734979843974,-4795.02,0.00017797,2]
[346450211,1734979843984,-1526.14,0.00017797,2]
[346450212,1734979843993,-1678.48,0.00017797,2]
[346450213,1734979844002,-948.22,0.00017797,2]
[346450214,1734979844011,-2366.48,0.00017797,2]
[346450215,1734979844021,-500.0,0.00017797,2]
[346450216,1734979844030,-529.75,0.00017797,2]
[346450217,1734979844039,-3740.43,0.00017797,2]
[346450218,1734979844048,-3122.54,0.00017797,2]
[346450219,1734979844058,-2842.24,0.00017797,2]
[346450220,1734979844067,-2232.99,0.00017797,2]
[346450221,1734979844076,-6476.28,0.00017797,2]
[346450222,1734979844086,-1358.66,0.00017797,2]
[346450223,1734979844095,-1751.19,0.00017797,2]
[346450224,1734979844105,-8069.68,0.00017797,2]
[346450225,1734979844114,-500.0,0.00017797,2]
[346450226,1734979844124,-3157.81,0.00017797,2]
[346450227,1734979844134,-2961.91,0.00017797,2]
[346450228,1734979844143,-787.34,0.00017797,2]
[346450229,1734979844154,-2817.16,0.00017797,2]
[346450230,1734979844163,-3884.97,0.00017797,2]
[346450231,1734979844172,-10509.51,0.00017797,2]
[346450232,1734979844181,-2353.68,0.00017797,2]
[346450233,1734979844191,-1085.02,0.00017797,2]
[346450234,1734979844200,-4817.33,0.00017797,2]
[346450235,1734979844209,-500.0,0.00017797,2]
[346450236,1734979844218,-1183.72,0.00017797,2]
[346450237,1734979844231,-1916.98,0.00017797,2]
[346450238,1734979844241,-500.0,0.00017797,2]
[346450239,1734979844250,-1379.05,0.00017797,2]
[346450240,1734979844260,-2330.74,0.00017797,2]
[346450241,1734979844269,-500.94,0.00017797,2]
[346450242,1734979844278,-15067.45,0.00017797,2]
[346450243,1734979844287,-500.0,0.00017797,2]
[346450244,1734979844297,-826.73,0.00017797,2]
[346450245,1734979844306,-7000.75,0.00017797,2]
[346450246,1734979844316,-1654.85,0.00017797,2]
[346450247,1734979844325,-3790.38,0.00017797,2]
[346450248,1734979844334,-2639.73,0.00017797,2]
[346450249,1734979844344,-1530.37,0.00017797,2]
[346450250,1734979844352,-2525.52,0.00017797,2]
[346450251,1734979844362,-1270.59,0.00017797,2]
[346450252,1734979844371,-2370.53,0.00017797,2]
[346450253,1734979844381,-5863.6,0.00017797,2]
[346450254,1734979844390,-2236.24,0.00017797,2]
[346450255,1734979844399,-6361.61,0.00017797,2]
[346450256,1734979844408,-6003.85,0.00017797,2]
[346450257,1734979844418,-1186.95,0.00017797,2]
[346450258,1734979844427,-3326.94,0.00017797,2]
[346450259,1734979844437,-3078.56,0.00017797,2]
[346450260,1734979844447,-500.0,0.00017797,2]
[346450261,1734979844457,-849.49,0.00017797,2]
[346450262,1734979844466,-500.0,0.00017797,2]
[346450263,1734979844475,-670.28,0.00017797,2]
[346450264,1734979844487,-500.0,0.00017797,2]
[346450265,1734979844496,-5175.06,0.00017797,2]
[346450266,1734979844505,-2028.67,0.00017797,2]
[346450267,1734979844515,-1135.32,0.00017797,2]
[346450268,1734979844524,-5610.48,0.00017797,2]
[346450269,1734979844534,-1667.36,0.00017797,2]
[346450270,1734979844544,-749.69,0.00017797,2]
[346450271,1734979844554,-302.43229845,0.00017797,2]
[346450272,1734979844563,-150.0,0.00017797,2]
[346450273,1734979844573,-500.0,0.00017798,2]
[346450274,1734979844582,-500.0,0.00017798,2]
[346450275,1734979844596,-500.0,0.00017798,2]
[346450276,1734979844605,-500.0,0.00017798,2]
[346450277,1734979844615,-500.0,0.00017798,2]
[346450278,1734979844624,-581.13,0.00017798,2]
[346450279,1734979844633,-500.0,0.00017798,2]
[346450280,1734979844642,-1808.72,0.00017798,2]
[346450281,1734979844651,-500.0,0.00017798,2]
[346450282,1734979844661,-500.0,0.00017798,2]
[346450283,1734979844670,-500.0,0.00017798,2]
[346450284,1734979844680,-500.0,0.00017798,2]
[346450285,1734979844689,-500.0,0.00017798,2]
[346450286,1734979844699,-922.03,0.00017798,2]
[346450287,1734979844710,-500.0,0.00017798,2]
[346450288,1734979844719,-500.0,0.00017798,2]
[346450289,1734979844729,-666.2,0.00017798,2]
[346450290,1734979844742,-918.09,0.00017798,2]
[346450291,1734979844751,-699.65,0.00017798,2]
[346450292,1734979844761,-989.73,0.00017798,2]
[346450293,1734979844772,-719.37,0.00017798,2]
[346450294,1734979844782,-1017.66,0.00017798,2]
[346450295,1734979844791,-2889.86,0.00017798,2]
[346450296,1734979844800,-1170.6,0.00017798,2]
[346450297,1734979844810,-1438.34,0.00017798,2]
[346450298,1734979844819,-812.67,0.00017798,2]
[346450299,1734979844829,-1580.02,0.00017798,2]
[346450300,1734979844838,-520.63,0.00017798,2]
[346450301,1734979844847,-2468.08,0.00017798,2]
[346450302,1734979844856,-791.87,0.00017798,2]
[346450303,1734979844866,-1409.68,0.00017798,2]
[346450304,1734979844875,-3906.05,0.00017798,2]
[346450305,1734979844884,-500.0,0.00017798,2]
[346450306,1734979844894,-19921.1,0.00017798,2]
[346450307,1734979844903,-1075.07,0.00017798,2]
[346450308,1734979844912,-1611.32,0.00017798,2]
[346450309,1734979844922,-500.0,0.00017798,2]
[346450310,1734979844931,-2935.22,0.00017798,2]
[346450311,1734979844940,-1565.69,0.00017798,2]
[346450312,1734979844950,-2622.28,0.00017798,2]
[346450313,1734979844959,-1081.32,0.00017798,2]
[346450314,1734979844969,-1955.83,0.00017798,2]
[346450315,1734979844978,-1441.88,0.00017798,2]
[346450316,1734979844989,-1750.93,0.00017798,2]
[346450317,1734979844998,-634.75,0.00017798,2]
[346450318,1734979845007,-3592.0,0.00017798,2]
[346450319,1734979845017,-500.0,0.00017798,2]
[346450320,1734979845027,-1001.15,0.00017798,2]
[346450321,1734979845036,-500.0,0.00017798,2]
[346450322,1734979845045,-1569.58,0.00017798,2]
[346450323,1734979845054,-1049.39,0.00017798,2]
[346450324,1734979845063,-1218.79,0.00017798,2]
[346450325,1734979845073,-2571.7,0.00017798,2]
[346450326,1734979845082,-2298.48,0.00017798,2]